bitfinex/quotes_SOLUSD_20240818
["timestamp","ask_amount","ask_price","bid_price","bid_amount"]
[1723958345196,6.6,141.88,141.82,2.11870657]
[1723958345374,6.6,141.88,141.8,15.54018906]
[1723958345573,6.6,141.88,141.81,2.11879397]
[1723958345770,9.36,141.87,141.82,2.11879397]
[1723958345970,9.36,141.87,141.79,6.18018906]
[1723958345971,9.36,141.85,141.8,2.11882009]
[1723958346197,9.36,141.85,141.81,2.11882009]
[1723958346391,21.1224,141.87,141.8,2.11882009]
[1723958346392,6.6,141.84,141.8,2.11882009]
[1723958346691,6.6,141.84,141.81,2.11882009]
[1723958346892,6.6,141.84,141.78,26.0393943]
[1723958346893,6.6,141.84,141.8,9.36]
[1723958347070,6.6,141.84,141.81,2.11884192]
[1723958347266,6.6,141.84,141.8,9.36]
[1723958347489,6.6,141.84,141.81,2.11884112]
[1723958348292,6.6,141.84,141.8,9.36]
[1723958349084,6.6,141.84,141.81,2.11884192]
[1723958349283,6.6,141.84,141.82,1.41009385]
[1723958349485,16.1883,141.87,141.83,1.40993022]
[1723958349882,16.1883,141.87,141.83,3.52844438]
[1723958350097,16.1883,141.87,141.83,2.11851416]
[1723958350600,16.1883,141.87,141.81,2.11859044]
[1723958350895,16.1883,141.87,141.81,2.11873448]
[1723958351092,9.36,141.86,141.79,22.11873448]
[1723958351294,9.36,141.86,141.8,2.11890376]
[1723958351485,9.36,141.86,141.79,20.0]
[1723958351687,9.36,141.86,141.8,2.11890328]
[1723958351889,9.36,141.86,141.79,2.11890328]
[1723958352291,9.36,141.86,141.79,3.52919812]
[1723958352695,9.36,141.86,141.79,2.11890328]
[1723958353092,9.36,141.86,141.79,3.52919829]
[1723958353273,9.36,141.86,141.79,2.11890328]
[1723958353991,21.1224,141.87,141.79,2.11890328]
[1723958355080,16.1883,141.87,141.79,2.11890328]
[1723958355282,16.1883,141.87,141.79,2.11890614]
[1723958355690,16.1883,141.87,141.78,71.31632746]
[1723958355691,16.1883,141.87,141.78,65.12549]
[1723958356007,16.1883,141.87,141.79,2.11890583]
[1723958356197,16.1883,141.87,141.78,67.24439583]
[1723958356987,16.1883,141.87,141.79,0.12549]
[1723958357189,16.1883,141.87,141.78,67.11890583]
[1723958357593,16.1883,141.87,141.79,0.12549]
[1723958361817,21.1224,141.87,141.78,20.0]
[1723958361987,16.3067,141.85,141.78,20.0]
[1723958362194,16.3067,141.85,141.77,22.36990774]
[1723958362395,39.7367,141.85,141.77,22.11892774]
[1723958362610,44.6715,141.85,141.77,20.0]
[1723958362918,44.6715,141.85,141.76,20.0]
[1723958363421,6.2506,141.84,141.76,20.0]
[1723958363595,6.2506,141.84,141.74,7.37531615]
[1723958363596,6.2506,141.84,141.75,22.244748]
[1723958363797,6.2506,141.84,141.76,0.12549]
[1723958365309,16.3067,141.83,141.76,0.12549]
[1723958365720,16.3067,141.83,141.76,45.25098]
[1723958365909,16.3067,141.83,141.77,20.25098]
[1723958366609,16.3067,141.83,141.76,0.25098]
[1723958366927,16.3067,141.83,141.76,20.12549]
[1723958369001,16.3067,141.83,141.76,0.12549]
[1723958370294,16.3067,141.83,141.75,20.0]
[1723958370495,39.7367,141.83,141.75,20.0]
[1723958370712,6.1665,141.82,141.75,20.0]
[1723958370920,6.1665,141.82,141.74,0.12549]
[1723958371405,6.1665,141.82,141.74,20.12549]
[1723958371615,6.1665,141.82,141.75,0.12549]
[1723958371807,6.1665,141.82,141.75,70.34243184]
[1723958372199,6.1665,141.82,141.76,20.0]
[1723958372401,6.1665,141.82,141.77,0.12549]
[1723958372722,6.1665,141.82,141.77,1.5357866]
[1723958374125,6.1665,141.82,141.77,0.12549]
[1723958374736,6.1665,141.82,141.77,2.24469268]
[1723958374895,6.1665,141.82,141.77,0.12549]
[1723958375324,6.1665,141.82,141.77,2.24469268]
[1723958375522,6.1665,141.82,141.77,3.6550263]
[1723958375907,6.1665,141.82,141.77,13.0250263]
[1723958376323,6.1665,141.82,141.78,2.11920268]
[1723958376726,6.1665,141.82,141.79,1.41033025]
[1723958376922,6.1665,141.82,141.8,1.41017315]
[1723958377224,6.1665,141.82,141.79,9.37]
[1723958377831,6.1665,141.82,141.78,2.11920268]
[1723958379341,6.1665,141.82,141.78,3.52955711]
[1723958380331,6.1665,141.82,141.78,1.41035443]
[1723958381226,6.1665,141.82,141.77,9.49549]
[1723958381227,6.1665,141.82,141.77,0.12549]
[1723958381433,6.1665,141.82,141.78,2.11918143]
[1723958381632,6.1665,141.82,141.77,0.12549]
[1723958381821,6.1665,141.82,141.78,2.11916049]
[1723958382013,6.1665,141.82,141.77,1.53584702]
[1723958382227,6.1665,141.82,141.78,2.1191597]
[1723958382439,6.1665,141.82,141.79,2.1191597]
[1723958382637,6.1665,141.82,141.78,2.1191597]
[1723958382942,6.1665,141.82,141.79,2.1191597]
[1723958383142,6.1665,141.82,141.78,2.1191597]
[1723958383457,6.1665,141.82,141.79,2.11915891]
[1723958383746,6.1665,141.82,141.77,6.32001231]
[1723958383943,6.1665,141.82,141.78,3.52952609]
[1723958384120,6.1665,141.82,141.79,2.11916028]
[1723958384324,6.1665,141.82,141.78,1.41036581]
[1723958384649,6.1665,141.82,141.79,2.11918105]
[1723958384849,6.1665,141.82,141.77,6.32117744]
[1723958385034,6.1665,141.82,141.78,2.11918184]
[1723958385235,6.1665,141.82,141.79,2.11918184]
[1723958385546,6.1665,141.82,141.78,6.19568744]
[1723958385747,6.1665,141.82,141.79,2.11918074]
[1723958386045,6.1665,141.82,141.78,6.19568744]
[1723958386255,6.1665,141.82,141.79,2.1192023]
[1723958386556,6.1665,141.82,141.78,6.19568744]
[1723958386751,6.1665,141.82,141.79,2.11920151]
[1723958386925,6.1665,141.82,141.78,6.19568744]
[1723958387126,6.1665,141.82,141.79,2.1192023]
[1723958387348,6.1665,141.82,141.78,6.19568744]
[1723958387654,6.1665,141.82,141.79,2.11920237]
[1723958387825,6.1665,141.82,141.8,2.11920237]
[1723958388028,6.1665,141.82,141.78,6.19705876]
[1723958388029,6.1665,141.82,141.77,10.64887627]
[1723958388226,6.1665,141.82,141.78,8.31627782]
[1723958388445,6.1665,141.82,141.79,8.31627782]
[1723958388641,6.1665,141.82,141.8,2.11920316]
[1723958388857,6.1665,141.82,141.79,6.19707466]
[1723958389141,6.1665,141.82,141.8,2.11921209]
[1723958389343,6.1665,141.82,141.79,6.19707466]
[1723958389649,6.1665,141.82,141.8,2.11921209]
[1723958389971,6.1665,141.82,141.81,2.11921209]
[1723958394247,6.1665,141.82,141.81,2.11915593]
[1723958394555,16.3067,141.83,141.81,2.11915593]
[1723958394872,16.3067,141.83,141.82,2.11915593]
[1723958398162,16.3067,141.83,141.82,8.31180954]
[1723958400367,16.3067,141.83,141.82,2.11894583]
[1723958400668,16.3067,141.83,141.82,8.31150297]
[1723958401066,16.3067,141.83,141.82,2.11894583]
[1723958403165,16.3067,141.83,141.78,10.52060246]
[1723958403166,6.0738,141.82,141.78,10.52060246]
[1723958403383,9.37,141.8,141.79,2.11958225]
[1723958403565,9.37,141.8,141.75,10.52060246]
[1723958403566,9.37,141.8,141.76,6.19957363]
[1723958403762,9.37,141.8,141.75,10.52060246]
[1723958403763,9.37,141.8,141.77,8.31928365]
[1723958403961,9.37,141.8,141.78,2.11971002]
[1723958404161,9.37,141.8,141.76,6.20073903]
[1723958404386,15.4438,141.82,141.77,8.31974681]
[1723958404576,15.4438,141.82,141.78,2.11978118]
[1723958404777,15.4438,141.82,141.73,9.37]
[1723958404778,15.4438,141.82,141.76,6.20008801]
[1723958404983,15.4438,141.82,141.73,9.37]
[1723958404984,15.4438,141.82,141.77,8.31954389]
[1723958405280,15.4438,141.82,141.78,2.11967224]
[1723958405482,15.4438,141.82,141.74,10.53230988]
[1723958405483,15.4438,141.82,141.75,16.44857467]
[1723958405683,15.4438,141.82,141.76,8.32012545]
[1723958405866,15.4438,141.82,141.77,2.11973922]
[1723958406187,15.4438,141.82,141.76,6.20035659]
[1723958406373,15.4438,141.82,141.77,2.1197378]
[1723958406685,15.4438,141.82,141.75,10.2493318]
[1723958406887,15.4438,141.82,141.76,8.32013975]
[1723958407191,15.4438,141.82,141.77,2.11978047]
[1723958407365,15.4438,141.82,141.75,6.20108074]
[1723958407571,15.4438,141.82,141.76,2.1198257]
[1723958407766,15.4438,141.82,141.77,2.1198257]
[1723958407969,9.37,141.8,141.74,10.2493318]
[1723958408168,9.37,141.8,141.75,8.32048109]
[1723958408395,9.37,141.8,141.76,2.11982412]
[1723958408573,9.37,141.8,141.74,26.20065598]
[1723958408898,9.37,141.8,141.75,8.32048437]
[1723958409075,9.37,141.8,141.76,2.11982839]
[1723958409277,9.37,141.8,141.75,6.20065598]
[1723958409480,9.37,141.78,141.72,20.78346751]
[1723958409686,25.2654,141.78,141.73,8.32176833]
[1723958410005,25.2654,141.78,141.72,10.53369352]
[1723958410006,25.2654,141.78,141.74,8.32176833]
[1723958410304,25.2654,141.78,141.75,2.11995819]
[1723958410506,25.2654,141.78,141.71,20.78346751]
[1723958410667,25.2654,141.78,141.72,8.32028696]
[1723958410865,25.2654,141.78,141.73,8.32028696]
[1723958411071,6.6525,141.77,141.74,2.11996236]
[1723958411297,6.6525,141.77,141.72,6.19983544]
[1723958411480,6.6525,141.77,141.73,2.12013564]
[1723958411683,6.6525,141.77,141.72,6.19983544]
[1723958411877,6.6525,141.77,141.7,19.90369352]
[1723958411878,6.6525,141.77,141.73,2.12013516]
[1723958412111,6.6525,141.77,141.72,6.19983544]
[1723958412395,6.6525,141.77,141.73,2.12016846]
[1723958412600,6.6525,141.77,141.72,6.19983544]
[1723958412791,6.6525,141.77,141.73,2.12019004]
[1723958413094,6.6525,141.77,141.71,6.20136251]
[1723958413302,6.6525,141.77,141.72,2.12019084]
[1723958413511,6.6525,141.77,141.71,6.20136251]
[1723958413706,6.6525,141.77,141.72,2.1201913]
[1723958413892,6.6525,141.77,141.71,6.20136251]
[1723958414098,6.6525,141.77,141.72,2.12019051]
[1723958414301,6.6525,141.77,141.7,6.20136251]
[1723958414604,6.6525,141.77,141.71,22.12017051]
[1723958414812,6.6525,141.77,141.72,2.12017051]
[1723958415107,6.6525,141.77,141.71,20.0]
[1723958415311,6.6525,141.77,141.72,2.12021289]
[1723958416187,9.37,141.76,141.7,2.12021289]
[1723958416514,9.37,141.76,141.69,2.12021289]
[1723958416719,9.37,141.76,141.7,2.12021289]
[1723958416891,9.37,141.76,141.68,2.12021289]
[1723958417212,9.37,141.76,141.69,2.12021289]
[1723958417421,11.5901,141.77,141.66,16.73505603]
[1723958417422,9.37,141.72,141.67,2.12021289]
[1723958417613,9.37,141.72,141.63,33.70405378]
[1723958417780,9.37,141.72,141.64,16.76110112]
[1723958417986,9.37,141.72,141.65,2.12081237]
[1723958418193,9.37,141.72,141.66,2.12081237]
[1723958418424,9.37,141.72,141.65,2.12081237]
[1723958418627,9.37,141.72,141.66,2.12081237]
[1723958418925,9.37,141.72,141.64,2.12081237]
[1723958419104,9.37,141.72,141.65,2.12081237]
[1723958419422,9.37,141.72,141.63,24.33405378]
[1723958419423,9.37,141.72,141.64,11.49081237]
[1723958419620,9.37,141.72,141.65,2.12081237]
[1723958419996,9.37,141.72,141.65,22.12081237]
[1723958420228,9.37,141.72,141.65,20.0]
[1723958421027,6.6525,141.73,141.66,0.12549]
[1723958421207,6.6525,141.73,141.66,0.37647]
[1723958421598,6.6525,141.73,141.66,20.37647]
[1723958424396,6.6525,141.73,141.66,20.25098]
[1723958424728,6.6525,141.73,141.66,20.12549]
[1723958425322,16.0225,141.73,141.66,20.0]
[1723958425627,16.0225,141.73,141.64,20.0]
[1723958425934,16.0225,141.73,141.64,20.12549]
[1723958426302,16.0225,141.73,141.65,9.37]
[1723958426824,20.9616,141.73,141.64,20.12549]
[1723958427000,16.0225,141.73,141.64,9.49549]
[1723958427200,16.0225,141.73,141.65,20.0]
[1723958431517,16.0225,141.73,141.66,1.41158729]
[1723958432042,16.0225,141.73,141.65,20.0]
[1723958432837,6.6525,141.73,141.66,9.49549]
[1723958434534,6.6525,141.73,141.66,9.37]
[1723958434736,16.0225,141.73,141.65,20.0]
[1723958435737,15.0881,141.72,141.65,20.0]
[1723958437037,9.37,141.71,141.63,7.35921603]
[1723958437242,9.37,141.71,141.62,9.37]
[1723958438220,9.37,141.71,141.61,0.12549]
[1723958438538,6.5546,141.7,141.62,9.37]
[1723958438746,6.5546,141.7,141.63,20.0]
[1723958438916,6.5546,141.7,141.66,9.37]
[1723958439111,6.5546,141.7,141.67,1.41160044]
[1723958439340,6.5546,141.7,141.66,9.37]
[1723958439810,6.5546,141.7,141.67,1.41150814]
[1723958440215,15.0881,141.72,141.68,10.90687709]
[1723958440519,16.4566,141.76,141.71,9.37]
[1723958443749,16.4566,141.76,141.69,9.37]
[1723958443940,16.4566,141.76,141.7,20.0]
[1723958445939,0.12549,141.75,141.67,8.33034123]
[1723958446152,45.25098,141.75,141.67,11.49035838]
[1723958446319,45.25098,141.75,141.67,9.37]
[1723958446520,45.25098,141.75,141.67,11.49035838]
[1723958446723,45.25098,141.75,141.67,9.37]
[1723958446923,50.18928,141.75,141.67,9.37]
[1723958447551,50.18928,141.75,141.67,11.49035838]
[1723958447729,50.18928,141.75,141.67,9.37]
[1723958448045,50.18928,141.75,141.67,11.49035838]
[1723958448253,50.18928,141.75,141.68,2.12035838]
[1723958448751,16.4566,141.76,141.68,2.12035838]
[1723958449056,16.4566,141.76,141.69,9.37]
[1723958449258,16.4566,141.76,141.7,2.12035838]
[1723958449558,16.4566,141.76,141.7,2.12046242]
[1723958449936,16.4566,141.76,141.69,9.37]
[1723958450128,16.4566,141.76,141.7,2.12050657]
[1723958451134,16.4566,141.76,141.69,9.37]
[1723958451330,16.4566,141.76,141.71,9.37]
[1723958452167,16.4566,141.76,141.72,2.12025978]
[1723958452351,16.4566,141.76,141.71,9.37]
[1723958452536,16.4566,141.76,141.72,2.12013604]
[1723958452741,16.4566,141.76,141.73,2.12012441]
[1723958452948,16.4566,141.76,141.72,2.12020223]
[1723958453261,16.4566,141.76,141.71,9.37]
[1723958453456,16.4566,141.76,141.72,2.12022382]
[1723958453658,16.4566,141.76,141.7,15.5827019]
[1723958453829,16.4566,141.76,141.7,15.58133129]
[1723958454034,16.4566,141.76,141.71,2.1203837]
[1723958454259,16.4566,141.76,141.72,2.1203837]
[1723958454440,16.4566,141.76,141.7,15.58133129]
[1723958454637,16.4566,141.76,141.71,2.12031876]
[1723958454951,16.4566,141.76,141.72,2.12031876]
[1723958455255,16.4566,141.76,141.7,15.58092199]
[1723958455560,16.4566,141.76,141.71,2.12039431]
[1723958455739,16.4566,141.76,141.72,2.12039431]
[1723958455933,16.4566,141.76,141.71,6.21092199]
[1723958456132,16.4566,141.76,141.72,2.12026528]
[1723958456353,16.4566,141.76,141.73,2.1202429]
[1723958456563,16.4566,141.76,141.71,6.21092199]
[1723958456735,16.4566,141.76,141.72,2.12024211]
[1723958456941,16.4566,141.76,141.73,2.12024211]
[1723958457140,16.4566,141.76,141.7,9.37]
[1723958457555,16.4566,141.76,141.71,9.74183757]
[1723958457856,16.4566,141.76,141.7,9.37]
[1723958457857,16.4566,141.76,141.72,2.12025364]
[1723958458160,16.4566,141.76,141.73,2.12025364]
[1723958458358,16.4566,141.76,141.7,19.92019505]
[1723958458656,16.4566,141.76,141.71,8.3304216]
[1723958458875,16.4566,141.76,141.72,2.12023533]
[1723958459160,16.4566,141.76,141.73,2.12023533]
[1723958459345,16.4566,141.76,141.7,19.92019505]
[1723958459676,16.4566,141.76,141.71,8.33007818]
[1723958459861,16.4566,141.76,141.72,2.12022968]
[1723958460154,16.4566,141.76,141.73,2.12022968]
[1723958460335,16.4566,141.76,141.74,2.12022968]
[1723958460537,16.4566,141.76,141.73,6.20824244]
[1723958460744,16.4566,141.76,141.74,2.12006138]
[1723958460965,16.4566,141.76,141.73,6.20824244]
[1723958460966,16.4566,141.76,141.73,6.20801974]
[1723958461258,16.4566,141.76,141.74,2.12004914]
[1723958461560,16.4566,141.76,141.73,6.20801974]
[1723958461733,16.4566,141.76,141.74,2.12006127]
[1723958461931,16.4566,141.76,141.73,6.20801974]
[1723958462131,16.4566,141.76,141.74,2.12006206]
[1723958462459,16.4566,141.76,141.72,6.20801974]
[1723958462662,16.4566,141.76,141.73,2.12016555]
[1723958462863,16.4566,141.76,141.72,6.20801974]
[1723958463071,16.4566,141.76,141.73,2.12021048]
[1723958463262,16.4566,141.76,141.72,6.20801974]
[1723958463454,16.4566,141.76,141.73,2.12016856]
[1723958463781,16.4566,141.76,141.71,6.21046238]
[1723958464067,16.4566,141.76,141.72,2.12038273]
[1723958464250,16.4566,141.76,141.69,19.91617497]
[1723958464451,16.4566,141.76,141.7,8.33249556]
[1723958464652,30.7646,141.76,141.71,2.1204059]
[1723958464844,25.8266,141.76,141.69,6.21333773]
[1723958465044,6.4074,141.73,141.66,20.8258428]
[1723958465243,6.4074,141.73,141.67,8.33579253]
[1723958465458,6.4074,141.73,141.68,8.33579253]
[1723958465655,6.4074,141.73,141.69,2.1207407]
[1723958465863,6.4074,141.73,141.68,6.21505183]
[1723958466141,6.4074,141.73,141.66,30.1958428]
[1723958466142,6.4074,141.73,141.69,2.12077955]
[1723958466343,6.4074,141.73,141.68,6.21505183]
[1723958466659,6.4074,141.73,141.69,2.12080114]
[1723958466962,6.4074,141.73,141.68,6.21505183]
[1723958467143,6.4074,141.73,141.67,6.21505183]
[1723958467472,6.4074,141.73,141.68,2.12090893]
[1723958467640,6.4074,141.73,141.67,6.21505183]
[1723958467840,6.4074,141.73,141.68,2.12094225]
[1723958468048,6.4074,141.73,141.66,9.37]
[1723958468049,6.4074,141.73,141.69,2.12094225]
[1723958468343,6.4074,141.73,141.67,6.21645028]
[1723958468543,6.4074,141.73,141.66,19.92513489]
[1723958468544,6.4074,141.73,141.68,2.12085695]
[1723958468847,6.4074,141.73,141.69,2.12085695]
[1723958469160,6.4074,141.73,141.67,6.21658459]
[1723958469161,6.4074,141.73,141.68,7.62766758]
[1723958469354,6.4074,141.73,141.69,2.12081421]
[1723958469561,6.4074,141.73,141.7,2.12081421]
[1723958469761,6.4074,141.73,141.69,6.21623618]
[1723958469961,6.4074,141.73,141.7,2.12059489]
[1723958470170,6.4074,141.73,141.69,6.21623618]
[1723958470371,6.4074,141.73,141.7,2.12061727]
[1723958470544,6.4074,141.73,141.69,6.21623618]
[1723958470745,6.4074,141.73,141.7,2.12061727]
[1723958471066,6.4074,141.73,141.69,6.21623618]
[1723958471261,6.4074,141.73,141.7,2.12061648]
[1723958471467,6.4074,141.73,141.69,6.21623618]
[1723958471645,6.4074,141.73,141.7,2.12061727]
[1723958471847,6.4074,141.73,141.69,6.21623618]
[1723958472058,6.4074,141.73,141.7,2.12063886]
[1723958472250,6.4074,141.73,141.68,9.37]
[1723958472568,6.4074,141.73,141.69,2.12068144]
[1723958472874,6.4074,141.73,141.7,2.12068144]
[1723958473059,6.4074,141.73,141.68,15.58048019]
[1723958473372,6.4074,141.73,141.69,2.12068303]
[1723958473670,6.4074,141.73,141.7,2.12068303]
[1723958473878,6.4074,141.73,141.68,9.37]
[1723958474047,6.4074,141.73,141.69,8.33035596]
[1723958474247,6.4074,141.73,141.7,2.12063823]
[1723958474464,6.4074,141.73,141.69,6.20971773]
[1723958474770,6.4074,141.73,141.7,2.12067067]
[1723958475077,6.4074,141.73,141.69,6.21030272]
[1723958475278,6.4074,141.73,141.7,2.12064907]
[1723958475567,6.4074,141.73,141.69,6.21030272]
[1723958475767,6.4074,141.73,141.7,2.12063823]
[1723958475976,6.4074,141.73,141.69,6.21030272]
[1723958476150,6.4074,141.73,141.7,2.12070097]
[1723958476345,6.4074,141.73,141.69,6.21019148]
[1723958476559,6.4074,141.73,141.7,2.12067938]
[1723958476851,6.4074,141.73,141.69,6.21019576]
[1723958477079,6.4074,141.73,141.7,2.12068239]
[1723958477254,6.4074,141.73,141.68,9.37]
[1723958477458,6.4074,141.73,141.69,2.12070478]
[1723958477652,6.4074,141.73,141.7,2.12070478]
[1723958477851,6.4074,141.73,141.68,9.37]
[1723958478052,6.4074,141.73,141.69,2.12070321]
[1723958478353,6.4074,141.73,141.7,2.12070321]
[1723958478553,6.4074,141.73,141.69,6.20961311]
[1723958478775,6.4074,141.73,141.7,2.12064979]
[1723958478982,6.4074,141.73,141.69,6.20961311]
[1723958479181,6.4074,141.73,141.7,2.120649]
[1723958479351,6.4074,141.73,141.69,6.20961311]
[1723958479555,6.4074,141.73,141.7,2.12065984]
[1723958479868,6.4074,141.73,141.69,6.20961311]
[1723958480057,6.4074,141.73,141.7,2.12065984]
[1723958480257,6.4074,141.73,141.69,6.20961311]
[1723958480579,6.4074,141.73,141.7,2.12065984]
[1723958480878,6.4074,141.73,141.69,6.20961311]
[1723958481076,6.4074,141.73,141.7,2.12068222]
[1723958481288,6.4074,141.73,141.69,6.21114068]
[1723958481581,6.4074,141.73,141.7,2.12068222]
[1723958481787,6.4074,141.73,141.69,6.21114068]
[1723958481983,6.4074,141.73,141.7,2.12068222]
[1723958482172,6.4074,141.73,141.69,6.21114068]
[1723958482358,6.4074,141.73,141.7,2.12068143]
[1723958482572,6.4074,141.73,141.69,6.21114068]
[1723958482883,6.4074,141.73,141.7,2.12068222]
[1723958483175,6.4074,141.73,141.68,9.37]
[1723958483377,6.4074,141.73,141.69,8.3319435]
[1723958483581,6.4074,141.73,141.7,2.12069381]
[1723958483788,6.4074,141.73,141.69,6.21226258]
[1723958483954,6.4074,141.73,141.7,2.12068445]
[1723958484157,6.4074,141.73,141.69,6.21237292]
[1723958484370,6.4074,141.73,141.7,2.12068365]
[1723958484588,6.4074,141.73,141.69,6.21237031]
[1723958484763,6.4074,141.73,141.68,6.21237031]
[1723958484960,6.4074,141.73,141.69,2.12091766]
[1723958485265,6.4074,141.73,141.68,6.21237031]
[1723958485462,6.4074,141.73,141.69,2.12091687]
[1723958485672,15.7271,141.72,141.66,10.26706921]
[1723958485891,15.7271,141.72,141.67,8.33592382]
[1723958486182,15.7271,141.72,141.68,2.12096999]
[1723958486376,15.7271,141.72,141.69,2.12096619]
[1723958486581,15.7271,141.72,141.67,6.21494211]
[1723958486758,15.7271,141.72,141.68,2.12097624]
[1723958486959,15.7271,141.72,141.66,6.21466492]
[1723958487158,15.7271,141.72,141.67,8.33564195]
[1723958487459,15.7271,141.72,141.68,2.12097703]
[1723958487660,15.7271,141.72,141.66,6.21466921]
[1723958487862,15.7271,141.72,141.67,8.33565005]
[1723958488062,4.9397,141.71,141.68,2.12098084]
[1723958488270,15.7271,141.72,141.66,6.21483869]
[1723958488492,15.7271,141.72,141.67,2.1210704]
[1723958488785,50.19058,141.71,141.63,20.82407271]
[1723958488968,6.6252,141.68,141.64,8.33846639]
[1723958489290,6.6252,141.68,141.65,8.33846639]
[1723958489588,6.6252,141.68,141.66,2.12125488]
[1723958489763,6.6252,141.68,141.65,6.21762719]
[1723958489961,6.6252,141.68,141.66,2.12129764]
[1723958490184,6.6252,141.68,141.62,20.84004528]
[1723958490487,6.6252,141.68,141.63,28.33733134]
[1723958490673,6.6252,141.68,141.64,8.33733134]
[1723958490879,6.6252,141.68,141.65,2.12130081]
[1723958491091,6.6252,141.68,141.63,20.0]
[1723958491092,6.6252,141.68,141.64,6.21698402]
[1723958491387,6.6252,141.68,141.65,2.12141265]
[1723958491570,6.6252,141.68,141.63,20.0]
[1723958491768,6.6252,141.68,141.64,2.12141344]
[1723958491958,21.7817,141.74,141.65,2.12141344]
[1723958492162,21.7817,141.74,141.67,9.37]
[1723958492389,21.7817,141.74,141.68,2.12107198]
[1723958492688,21.7817,141.74,141.67,9.37]
[1723958493074,21.7817,141.74,141.68,2.12095717]
[1723958493272,21.7817,141.74,141.67,9.37]
[1723958493583,21.7817,141.74,141.68,2.12093002]
[1723958493788,21.7817,141.74,141.67,9.37]
[1723958495188,21.7817,141.74,141.68,2.12095717]
[1723958495362,21.7817,141.74,141.67,9.37]
[1723958495672,21.7817,141.74,141.68,2.12095638]
[1723958495875,21.7817,141.74,141.67,9.37]
[1723958496192,26.7203,141.74,141.67,9.37]
[1723958499391,21.7817,141.74,141.67,9.37]
[1723958499571,21.7817,141.74,141.68,2.12092488]
[1723958499767,21.7817,141.74,141.67,9.37]
[1723958499984,21.7817,141.74,141.68,2.12092442]
[1723958500196,21.7817,141.74,141.67,9.37]
[1723958500372,21.7817,141.74,141.68,2.12093478]
[1723958500571,21.7817,141.74,141.67,9.37]
[1723958500797,21.7817,141.74,141.68,2.12093557]
[1723958500969,21.7817,141.74,141.67,9.37]
[1723958501293,21.7817,141.74,141.68,2.12091318]
[1723958501590,21.7817,141.74,141.67,9.37]
[1723958501896,21.7817,141.74,141.68,2.12093478]
[1723958502088,21.7817,141.74,141.67,15.58234065]
[1723958502291,21.7817,141.74,141.67,9.37]
[1723958502465,21.7817,141.74,141.68,2.12091397]
[1723958502668,21.7817,141.74,141.67,9.37]
[1723958502869,21.7817,141.74,141.69,9.37]
[1723958505393,21.7817,141.74,141.7,1.41139648]
[1723958506700,21.7817,141.74,141.71,9.37]
[1723958506996,21.7817,141.78,141.73,9.37]
[1723958508392,21.7817,141.78,141.73,10.78090214]
[1723958509225,21.7817,141.78,141.75,9.37]
[1723958509393,22.6776,141.82,141.77,9.37]
[1723958509723,22.6776,141.82,141.79,9.37]
[1723958512716,22.6776,141.82,141.76,3.52955858]
[1723958512894,22.6776,141.82,141.77,9.37]
[1723958513615,22.6776,141.82,141.78,1.41045416]
[1723958513817,22.6776,141.82,141.77,9.37]
[1723958516253,22.6776,141.82,141.75,1.4104791]
[1723958516431,22.6776,141.82,141.77,9.37]
[1723958516923,22.6776,141.82,141.78,1.41052325]
[1723958517129,22.6776,141.82,141.76,0.12549]
[1723958517328,22.6776,141.82,141.76,1.66134297]
[1723958518210,22.6776,141.82,141.79,9.37]
[1723958518947,22.6776,141.82,141.76,0.25098]
[1723958519234,22.6776,141.82,141.78,9.37]
[1723958523214,22.6776,141.82,141.8,9.37]
[1723958524240,22.6776,141.82,141.76,0.12549]
[1723958524455,22.6776,141.82,141.76,0.25098]
[1723958525126,22.6776,141.82,141.76,0.12549]
[1723958525353,22.6776,141.82,141.75,29.37]
[1723958525555,22.6776,141.82,141.75,9.37]
[1723958527335,22.6776,141.82,141.73,0.12549]